[Event "46th GER-ch Rapid 2020"]
[Site "Plochingen"]
[Date "2020.09.19"]
[Round "4.6"]
[White "Frischmann, Rick"]
[Black "Nguyen, Alex Dac-Vuong"]
[Result "1-0"]
[ECO "B12"]
[WhiteElo "2347"]
[BlackElo "2343"]
[Annotator "ChessBase"]
[PlyCount "92"]
[EventDate "2020.09.19"]
[EventType "swiss"]
[EventCountry "GER"]
[SourceTitle "playchess.com"]
[Source "ChessBase"]
[SourceQuality "1"]
[TimeControl "900+10"]

1. e4 {[%emt 0:00:00]} c6 {[%emt 0:00:00]} 2. d4 {[%emt 0:00:00]} d5 {[%emt 0:00:00]} 3. e5 {[%emt 0:00:00]} Bf5 {[%emt 0:00:00]} 4. Nf3 {[%emt 0:00:00]} e6 {[%emt 0:00:00]} 5. Be2 {[%emt 0:00:00]} Nd7 {[%emt 0:00:30]} 6. O-O {[%emt 0:00:03]} Ne7 {[%emt 0:00:08]} 7. Nbd2 {[%emt 0:00:28]} c5 {[%emt 0:00:13]} 8. c4 {[%emt 0:00:35]} Bg4 {[%emt 0:01:31]} 9. dxc5 {[%emt 0:00:33]} Nxc5 {[%emt 0:00:15]} 10. cxd5 {[%emt 0:00:32]} Qxd5 {[%emt 0:01:07]} 11. Nc4 {[%emt 0:00:50]} Nf5 {[%emt 0:02:36]} 12. Qxd5 {[%emt 0:00:06]} exd5 {[%emt 0:00:02]} 13. Ne3 {[%emt 0:00:02]} Nxe3 {[%emt 0:00:15]} 14. Bxe3 {[%emt 0:00:03]} Ne6 {[%emt 0:00:03]} 15. Bb5+ {[%emt 0:00:11]} Ke7 {[%emt 0:00:12]} 16. Nd4 {[%emt 0:00:31]} a6 {[%emt 0:01:26]} 17. Ba4 {[%emt 0:00:10]} Nxd4 {[%emt 0:01:41]} 18. Bxd4 {[%emt 0:00:02]} Be2 {[%emt 0:03:13]} 19. Rfc1 {[%emt 0:00:09]} b5 {[%emt 0:00:02]} 20. Bb3 {[%emt 0:01:22]} Bc4 {[%emt 0:00:11]} 21. Bd1 {[%emt 0:00:02]} g6 {[%emt 0:02:56]} 22. Bf3 {[%emt 0:01:03]} Bh6 {[%emt 0:00:22]} 23. Rd1 {[%emt 0:00:01]} Rac8 {[%emt 0:01:05]} 24. b3 {[%emt 0:00:09]} b4 {[%emt 0:00:18]} 25. bxc4 {[%emt 0:00:15]} dxc4 {[%emt 0:00:02]} 26. Bb7 {[%emt 0:00:44]} Rc7 {[%emt 0:00:17]} 27. Bxa6 {[%emt 0:00:19]} c3 {[%emt 0:00:06]} 28. Be3 {[%emt 0:01:38]} Bxe3 {[%emt 0:00:08]} 29. fxe3 {[%emt 0:00:01]} c2 {[%emt 0:00:02]} 30. Rdc1 {[%emt 0:02:44]} Ra8 {[%emt 0:00:03]} 31. Bb7 {[%emt 0:00:02]} Ra3 {[%emt 0:00:54]} 32. Bd5 {[%emt 0:00:14]} Rxe3 {[%emt 0:00:11]} 33. Bb3 {[%emt 0:00:41]} Rec3 {[%emt 0:00:06]} 34. Kf2 {[%emt 0:00:13]} R7c5 {[%emt 0:00:02]} 35. g3 {[%emt 0:04:58]} h6 {[%emt 0:00:30]} 36. Ke2 {[%emt 0:00:46]} Rxe5+ {[%emt 0:00:02]} 37. Kd2 {[%emt 0:00:01]} Rh5 {[%emt 0:00:00]} 38. Rh1 {[%emt 0:00:32]} Rf3 {[%emt 0:00:38]} 39. Rae1+ {[%emt 0:00:19]} Kf8 {[%emt 0:00:10]} 40. Re2 {[%emt 0:00:30]} Rc5 {[%emt 0:00:12]} 41. Kc1 {[%emt 0:00:09]} Kg7 {[%emt 0:00:02]} 42. Rxc2 {[%emt 0:00:16]} Re5 {[%emt 0:00:02]} 43. Kb2 {[%emt 0:00:10]} h5 {[%emt 0:00:02]} 44. Rd1 {[%emt 0:00:07]} Rfe3 {[%emt 0:00:33]} 45. Rd7 {[%emt 0:00:25]} Rf5 {[%emt 0:00:10]} 46. Rd4 {[%emt 0:00:19]} Rb5 {[%emt 0:00:13]} 1-0

[Event "46th GER-ch Rapid 2020"]
[Site "Plochingen"]
[Date "2020.09.19"]
[Round "4.7"]
[White "Richter, Christian"]
[Black "Spiess, Gunter"]
[Result "1/2-1/2"]
[ECO "D37"]
[WhiteElo "2348"]
[BlackElo "2391"]
[Annotator "ChessBase"]
[PlyCount "27"]
[EventDate "2020.09.19"]
[EventType "swiss"]
[EventCountry "GER"]
[SourceTitle "playchess.com"]
[Source "ChessBase"]
[SourceQuality "1"]
[TimeControl "900+10"]

1. d4 {[%emt 0:00:00]} d5 {[%emt 0:00:00]} 2. Nf3 {[%emt 0:00:00]} Nf6 {[%emt 0:00:00]} 3. c4 {[%emt 0:00:00]} e6 {[%emt 0:00:23]} 4. Nc3 {[%emt 0:00:07]} a6 {[%emt 0:01:34]} 5. cxd5 {[%emt 0:01:21]} exd5 {[%emt 0:00:03]} 6. Bg5 {[%emt 0:00:25]} Be6 {[%emt 0:02:37]} 7. e3 {[%emt 0:00:36]} Nbd7 {[%emt 0:00:03]} 8. Bd3 {[%emt 0:00:38]} Bd6 {[%emt 0:00:08]} 9. Qc2 {[%emt 0:01:15]} c6 {[%emt 0:00:25]} 10. a3 {[%emt 0:01:06]} a5 {[%emt 0:00:26]} 11. Ne2 {[%emt 0:01:10]} Bg4 {[%emt 0:00:59]} 12. Nd2 {[%emt 0:04:30]} Bxe2 {[%emt 0:01:42]} 13. Bxe2 {[%emt 0:00:13]} Qc7 {[%emt 0:01:01]} 14. Bxf6 {[%emt 0:02:43]} 1/2-1/2

[Event "46th GER-ch Rapid 2020"]
[Site "Plochingen"]
[Date "2020.09.19"]
[Round "4.8"]
[White "Braeuning, Rudolf Wilhelm"]
[Black "Kopylov, Michael"]
[Result "1-0"]
[ECO "B01"]
[WhiteElo "2268"]
[BlackElo "2408"]
[Annotator "ChessBase"]
[PlyCount "53"]
[EventDate "2020.09.19"]
[EventType "swiss"]
[EventCountry "GER"]
[SourceTitle "playchess.com"]
[Source "ChessBase"]
[SourceQuality "1"]
[TimeControl "900+10"]

1. e4 {[%emt 0:00:00]} d5 {[%emt 0:00:00]} 2. exd5 {[%emt 0:00:00]} Qxd5 {[%emt 0:00:00]} 3. Nc3 {[%emt 0:00:00]} Qd6 {[%emt 0:00:00]} 4. d4 {[%emt 0:00:01]} Nf6 {[%emt 0:00:00]} 5. Bg5 {[%emt 0:00:04]} a6 {[%emt 0:00:00]} 6. g3 {[%emt 0:00:33]} Bg4 {[%emt 0:00:21]} 7. f3 {[%emt 0:00:50]} Bf5 {[%emt 0:00:08]} 8. Qd2 {[%emt 0:00:21]} Nc6 {[%emt 0:00:15]} 9. O-O-O {[%emt 0:00:37]} O-O-O {[%emt 0:00:16]} 10. Nge2 {[%emt 0:02:14]} Nb4 {[%emt 0:02:41]} 11. Bxf6 {[%emt 0:00:07]} exf6 {[%emt 0:01:00]} 12. Ne4 {[%emt 0:00:11]} Qd5 {[%emt 0:02:26]} 13. a3 {[%emt 0:03:33]} Bxe4 {[%emt 0:01:40]} 14. fxe4 {[%emt 0:00:15]} Qa2 {[%emt 0:01:41]} 15. Qc3 {[%emt 0:00:23]} Nc6 {[%emt 0:00:04]} 16. Bh3+ {[%emt 0:04:28]} Kb8 {[%emt 0:00:01]} 17. Kd2 {[%emt 0:00:25]} g6 {[%emt 0:01:55]} 18. Ke3 {[%emt 0:00:22]} Bh6+ {[%emt 0:00:35]} 19. Kf2 {[%emt 0:00:14]} f5 {[%emt 0:00:57]} 20. d5 {[%emt 0:01:01]} Ne5 {[%emt 0:01:54]} 21. Qxe5 {[%emt 0:00:25]} Rhe8 {[%emt 0:00:01]} 22. Qc3 {[%emt 0:00:28]} Rxe4 {[%emt 0:00:21]} 23. Bg2 {[%emt 0:00:44]} Re3 {[%emt 0:00:32]} 24. Qd4 {[%emt 0:00:28]} Rde8 {[%emt 0:00:10]} 25. Rhe1 {[%emt 0:00:29]} R3e5 {[%emt 0:01:35]} 26. Nc3 {[%emt 0:00:32]} Rxe1 {[%emt 0:00:34]} 27. Rxe1 {[%emt 0:00:01]} 1-0

[Event "46th GER-ch Rapid 2020"]
[Site "Plochingen"]
[Date "2020.09.19"]
[Round "4.9"]
[White "Voigt, Martin"]
[Black "Gschnitzer, Oswald"]
[Result "1-0"]
[ECO "B57"]
[WhiteElo "2289"]
[BlackElo "2373"]
[Annotator "ChessBase"]
[PlyCount "49"]
[EventDate "2020.09.19"]
[EventType "swiss"]
[EventCountry "GER"]
[SourceTitle "playchess.com"]
[Source "ChessBase"]
[SourceQuality "1"]
[TimeControl "900+10"]

1. e4 {[%emt 0:00:00]} c5 {[%emt 0:00:00]} 2. Nf3 {[%emt 0:00:00]} Nc6 {[%emt 0:00:00]} 3. Nc3 {[%emt 0:00:04]} d6 {[%emt 0:00:04]} 4. Bc4 {[%emt 0:00:31]} Nf6 {[%emt 0:00:10]} 5. d4 {[%emt 0:00:11]} cxd4 {[%emt 0:00:04]} 6. Nxd4 {[%emt 0:00:02]} Qb6 {[%emt 0:00:20]} 7. Ndb5 {[%emt 0:00:18]} a6 {[%emt 0:00:06]} 8. Be3 {[%emt 0:00:05]} Qa5 {[%emt 0:00:22]} 9. Nd4 {[%emt 0:00:31]} e6 {[%emt 0:00:05]} 10. O-O {[%emt 0:00:15]} Be7 {[%emt 0:00:04]} 11. f4 {[%emt 0:01:01]} O-O {[%emt 0:00:38]} 12. Bb3 {[%emt 0:00:36]} Bd7 {[%emt 0:00:43]} 13. f5 {[%emt 0:00:08]} Nxd4 {[%emt 0:00:31]} 14. Bxd4 {[%emt 0:00:19]} e5 {[%emt 0:01:33]} 15. Bf2 {[%emt 0:00:04]} Bc6 {[%emt 0:00:03]} 16. Bh4 {[%emt 0:00:14]} Rad8 {[%emt 0:01:09]} 17. Bxf6 {[%emt 0:00:04]} Bxf6 {[%emt 0:00:01]} 18. Nd5 {[%emt 0:00:11]} Bg5 {[%emt 0:00:34]} 19. Qh5 {[%emt 0:01:15]} Bxd5 {[%emt 0:01:02]} 20. Bxd5 {[%emt 0:01:43]} Be3+ {[%emt 0:02:13]} 21. Kh1 {[%emt 0:00:01]} Rd7 {[%emt 0:00:39]} 22. Rf3 {[%emt 0:00:16]} Qd2 {[%emt 0:00:19]} 23. Rh3 {[%emt 0:03:03]} h6 {[%emt 0:00:28]} 24. f6 {[%emt 0:00:02]} Rc8 {[%emt 0:00:46]} 25. Qg6 {[%emt 0:00:19]} 1-0

[Event "46th GER-ch Rapid 2020"]
[Site "Plochingen"]
[Date "2020.09.19"]
[Round "4.10"]
[White "Schwarz, Frank"]
[Black "Reichmann, Hendrik"]
[Result "1/2-1/2"]
[ECO "B06"]
[WhiteElo "2231"]
[BlackElo "2348"]
[Annotator "ChessBase"]
[PlyCount "24"]
[EventDate "2020.09.19"]
[EventType "swiss"]
[EventCountry "GER"]
[SourceTitle "playchess.com"]
[Source "ChessBase"]
[SourceQuality "1"]
[TimeControl "900+10"]

1. e4 {[%emt 0:00:00]} g6 {[%emt 0:00:00]} 2. f4 {[%emt 0:00:01]} Bg7 {[%emt 0:00:00]} 3. Nf3 {[%emt 0:00:02]} d5 {[%emt 0:00:05]} 4. Nc3 {[%emt 0:00:09]} dxe4 {[%emt 0:01:12]} 5. Nxe4 {[%emt 0:00:03]} Nf6 {[%emt 0:00:30]} 6. Nf2 {[%emt 0:00:19]} O-O {[%emt 0:00:51]} 7. Bc4 {[%emt 0:00:18]} Nc6 {[%emt 0:02:04]} 8. d4 {[%emt 0:02:02]} Ng4 {[%emt 0:03:15]} 9. c3 {[%emt 0:04:28]} Nxf2 {[%emt 0:02:05]} 10. Kxf2 {[%emt 0:00:02]} Bg4 {[%emt 0:00:15]} 11. Be3 {[%emt 0:00:18]} Na5 {[%emt 0:01:19]} 12. Be2 {[%emt 0:00:14]} Qd5 {[%emt 0:00:59]} 1/2-1/2

[Event "46th GER-ch Rapid 2020"]
[Site "Plochingen"]
[Date "2020.09.19"]
[Round "5.1"]
[White "Neukirchner, Pascal"]
[Black "Rosner, Jonas"]
[Result "1/2-1/2"]
[ECO "D30"]
[WhiteElo "2259"]
[BlackElo "2433"]
[Annotator "ChessBase"]
[PlyCount "95"]
[EventDate "2020.09.19"]
[EventType "swiss"]
[EventCountry "GER"]
[SourceTitle "playchess.com"]
[Source "ChessBase"]
[SourceQuality "1"]
[TimeControl "900+10"]

1. d4 {[%emt 0:00:00]} d5 {[%emt 0:00:00]} 2. c4 {[%emt 0:00:00]} c6 {[%emt 0:00:00]} 3. Nf3 {[%emt 0:00:00]} Nf6 {[%emt 0:00:00]} 4. e3 {[%emt 0:00:00]} e6 {[%emt 0:00:00]} 5. b3 {[%emt 0:00:00]} Ne4 {[%emt 0:00:01]} 6. Bd3 {[%emt 0:00:17]} Bb4+ {[%emt 0:00:22]} 7. Nbd2 {[%emt 0:00:18]} f5 {[%emt 0:00:39]} 8. a3 {[%emt 0:01:50]} Bd6 {[%emt 0:00:28]} 9. Bb2 {[%emt 0:00:19]} Nd7 {[%emt 0:00:15]} 10. O-O {[%emt 0:00:09]} Qf6 {[%emt 0:00:31]} 11. b4 {[%emt 0:01:25]} g5 {[%emt 0:01:31]} 12. Ne5 {[%emt 0:02:33]} O-O {[%emt 0:01:43]} 13. Nxd7 {[%emt 0:03:51]} Bxd7 {[%emt 0:00:08]} 14. f3 {[%emt 0:00:05]} Qh6 {[%emt 0:02:15]} 15. g3 {[%emt 0:00:08]} g4 {[%emt 0:04:16]} 16. f4 {[%emt 0:00:38]} Qg7 {[%emt 0:00:47]} 17. c5 {[%emt 0:00:49]} Be7 {[%emt 0:00:38]} 18. a4 {[%emt 0:00:16]} h5 {[%emt 0:00:12]} 19. Nxe4 {[%emt 0:00:23]} fxe4 {[%emt 0:00:16]} 20. Be2 {[%emt 0:00:01]} Kf7 {[%emt 0:00:30]} 21. h4 {[%emt 0:00:54]} gxh3 {[%emt 0:00:57]} 22. Bxh5+ {[%emt 0:00:02]} Kg8 {[%emt 0:00:10]} 23. Qg4 {[%emt 0:00:20]} Rf6 {[%emt 0:00:36]} 24. Kf2 {[%emt 0:00:37]} Rh6 {[%emt 0:00:19]} 25. Rh1 {[%emt 0:00:36]} Be8 {[%emt 0:00:39]} 26. Qxg7+ {[%emt 0:00:34]} Kxg7 {[%emt 0:00:00]} 27. Bg4 {[%emt 0:00:43]} Bh5 {[%emt 0:00:22]} 28. Bxh5 {[%emt 0:00:48]} Rxh5 {[%emt 0:00:01]} 29. g4 {[%emt 0:00:01]} Rh7 {[%emt 0:00:26]} 30. g5 {[%emt 0:00:10]} Rah8 {[%emt 0:01:00]} 31. Rh2 {[%emt 0:00:06]} Kg6 {[%emt 0:00:11]} 32. Rah1 {[%emt 0:00:16]} Kf5 {[%emt 0:00:14]} 33. Kg3 {[%emt 0:00:01]} Rh4 {[%emt 0:00:06]} 34. Rxh3 {[%emt 0:00:04]} Rxh3+ {[%emt 0:00:04]} 35. Rxh3 {[%emt 0:00:01]} Rxh3+ {[%emt 0:00:01]} 36. Kxh3 {[%emt 0:00:01]} a6 {[%emt 0:00:12]} 37. Kh4 {[%emt 0:00:04]} Kg6 {[%emt 0:00:01]} 38. Kg4 {[%emt 0:00:03]} Bd8 {[%emt 0:00:01]} 39. Bc3 {[%emt 0:00:03]} Bc7 {[%emt 0:00:09]} 40. Be1 {[%emt 0:00:18]} Bd8 {[%emt 0:00:02]} 41. Kh4 {[%emt 0:00:25]} Bc7 {[%emt 0:00:04]} 42. Bg3 {[%emt 0:00:08]} Bd8 {[%emt 0:00:01]} 43. Bh2 {[%emt 0:00:04]} Be7 {[%emt 0:00:02]} 44. Bg1 {[%emt 0:01:08]} Bd8 {[%emt 0:00:02]} 45. Bf2 {[%emt 0:00:01]} Be7 {[%emt 0:00:02]} 46. Be1 {[%emt 0:00:35]} Bd8 {[%emt 0:00:01]} 47. Kg4 {[%emt 0:00:50]} Be7 {[%emt 0:00:04]} 48. Kh4 {[%emt 0:00:51]} 1/2-1/2

[Event "46th GER-ch Rapid 2020"]
[Site "Plochingen"]
[Date "2020.09.19"]
[Round "5.2"]
[White "Hirneise, Jens"]
[Black "Dobrikov, Marco"]
[Result "0-1"]
[ECO "B80"]
[WhiteElo "2289"]
[BlackElo "2332"]
[Annotator "ChessBase"]
[PlyCount "96"]
[EventDate "2020.09.19"]
[EventType "swiss"]
[EventCountry "GER"]
[SourceTitle "playchess.com"]
[Source "ChessBase"]
[SourceQuality "1"]
[TimeControl "900+10"]

1. e4 {[%emt 0:00:00]} c5 {[%emt 0:00:00]} 2. Nc3 {[%emt 0:00:00]} d6 {[%emt 0:00:00]} 3. Nf3 {[%emt 0:00:00]} Nf6 {[%emt 0:00:00]} 4. d4 {[%emt 0:00:00]} cxd4 {[%emt 0:00:00]} 5. Nxd4 {[%emt 0:00:00]} a6 {[%emt 0:00:00]} 6. Bd3 {[%emt 0:00:06]} e6 {[%emt 0:00:23]} 7. Qe2 {[%emt 0:00:26]} b5 {[%emt 0:00:04]} 8. a4 {[%emt 0:00:23]} b4 {[%emt 0:00:04]} 9. Na2 {[%emt 0:00:03]} Bb7 {[%emt 0:00:23]} 10. Bd2 {[%emt 0:00:44]} Qb6 {[%emt 0:00:42]} 11. Nb3 {[%emt 0:00:54]} Nc6 {[%emt 0:00:28]} 12. a5 {[%emt 0:00:36]} Nxa5 {[%emt 0:00:09]} 13. Nxa5 {[%emt 0:00:22]} Qxa5 {[%emt 0:00:02]} 14. Bxb4 {[%emt 0:00:06]} Qb6 {[%emt 0:00:19]} 15. O-O {[%emt 0:00:17]} Be7 {[%emt 0:00:01]} 16. Ba3 {[%emt 0:00:56]} O-O {[%emt 0:01:02]} 17. Nc3 {[%emt 0:01:23]} Rfe8 {[%emt 0:00:29]} 18. b3 {[%emt 0:00:37]} Rec8 {[%emt 0:01:07]} 19. Bb2 {[%emt 0:00:28]} Nd7 {[%emt 0:01:09]} 20. Na4 {[%emt 0:00:22]} Qc7 {[%emt 0:00:02]} 21. f4 {[%emt 0:01:31]} Bf6 {[%emt 0:00:06]} 22. Bxf6 {[%emt 0:00:38]} Nxf6 {[%emt 0:00:02]} 23. e5 {[%emt 0:00:36]} Nd7 {[%emt 0:00:11]} 24. exd6 {[%emt 0:00:54]} Qxd6 {[%emt 0:00:02]} 25. Rad1 {[%emt 0:01:29]} Qc6 {[%emt 0:00:12]} 26. Rf2 {[%emt 0:00:59]} Re8 {[%emt 0:00:19]} 27. Re1 {[%emt 0:00:22]} Nf6 {[%emt 0:00:15]} 28. Nb2 {[%emt 0:00:17]} Red8 {[%emt 0:02:29]} 29. Nc4 {[%emt 0:00:07]} a5 {[%emt 0:00:01]} 30. Ne5 {[%emt 0:00:41]} Qc7 {[%emt 0:00:07]} 31. Ra1 {[%emt 0:00:16]} Rd4 {[%emt 0:01:20]} 32. Qe3 {[%emt 0:00:16]} Qd8 {[%emt 0:01:35]} 33. Qh3 {[%emt 0:00:32]} Be4 {[%emt 0:01:59]} 34. Qe3 {[%emt 0:00:38]} a4 {[%emt 0:00:27]} 35. bxa4 {[%emt 0:00:40]} Rdxa4 {[%emt 0:00:47]} 36. Rxa4 {[%emt 0:00:25]} Rxa4 {[%emt 0:00:01]} 37. Rf1 {[%emt 0:01:00]} g6 {[%emt 0:01:15]} 38. h3 {[%emt 0:01:06]} Nd5 {[%emt 0:00:27]} 39. Qc5 {[%emt 0:00:03]} Bxd3 {[%emt 0:01:12]} 40. Nxd3 {[%emt 0:00:12]} Ra5 {[%emt 0:00:32]} 41. Qd4 {[%emt 0:00:04]} Qc7 {[%emt 0:00:11]} 42. Rf2 {[%emt 0:00:32]} Nc3 {[%emt 0:00:35]} 43. Ne5 {[%emt 0:00:26]} Rd5 {[%emt 0:00:09]} 44. Qc4 {[%emt 0:00:21]} Rc5 {[%emt 0:00:40]} 45. Qd4 {[%emt 0:00:02]} Rd5 {[%emt 0:00:34]} 46. Qc4 {[%emt 0:00:02]} Qb6 {[%emt 0:00:33]} 47. Nd3 {[%emt 0:00:38]} Nd1 {[%emt 0:00:09]} 48. Kf1 {[%emt 0:00:18]} Ne3+ {[%emt 0:00:06]} 0-1

[Event "46th GER-ch Rapid 2020"]
[Site "Plochingen"]
[Date "2020.09.19"]
[Round "5.3"]
[White "Kvetny, Mark"]
[Black "Braeuning, Rudolf Wilhelm"]
[Result "1-0"]
[ECO "A21"]
[WhiteElo "2427"]
[BlackElo "2268"]
[Annotator "ChessBase"]
[PlyCount "87"]
[EventDate "2020.09.19"]
[EventType "swiss"]
[EventCountry "GER"]
[SourceTitle "playchess.com"]
[Source "ChessBase"]
[SourceQuality "1"]
[TimeControl "900+10"]

1. c4 {[%emt 0:00:00]} e5 {[%emt 0:00:00]} 2. Nc3 {[%emt 0:00:00]} Bb4 {[%emt 0:00:00]} 3. Nd5 {[%emt 0:00:00]} Bc5 {[%emt 0:00:28]} 4. e3 {[%emt 0:00:09]} c6 {[%emt 0:00:16]} 5. d4 {[%emt 0:00:05]} Bf8 {[%emt 0:01:26]} 6. Nc3 {[%emt 0:00:04]} exd4 {[%emt 0:00:49]} 7. Qxd4 {[%emt 0:00:04]} Nf6 {[%emt 0:01:02]} 8. Nf3 {[%emt 0:00:20]} d5 {[%emt 0:00:40]} 9. cxd5 {[%emt 0:00:50]} cxd5 {[%emt 0:00:04]} 10. Bb5+ {[%emt 0:00:11]} Nc6 {[%emt 0:00:02]} 11. O-O {[%emt 0:00:07]} Be7 {[%emt 0:00:48]} 12. h3 {[%emt 0:00:49]} O-O {[%emt 0:00:03]} 13. Qd3 {[%emt 0:00:02]} Be6 {[%emt 0:00:30]} 14. a3 {[%emt 0:00:17]} Rc8 {[%emt 0:01:22]} 15. Rd1 {[%emt 0:00:57]} Qd6 {[%emt 0:00:56]} 16. Bxc6 {[%emt 0:02:32]} bxc6 {[%emt 0:00:06]} 17. b4 {[%emt 0:00:02]} c5 {[%emt 0:01:31]} 18. bxc5 {[%emt 0:00:18]} Rxc5 {[%emt 0:00:22]} 19. a4 {[%emt 0:00:35]} Rfc8 {[%emt 0:03:05]} 20. Nb5 {[%emt 0:00:07]} Qd8 {[%emt 0:01:49]} 21. Ba3 {[%emt 0:00:36]} Rc2 {[%emt 0:01:23]} 22. Nfd4 {[%emt 0:00:26]} R2c4 {[%emt 0:00:14]} 23. Nxa7 {[%emt 0:00:31]} R8c7 {[%emt 0:00:19]} 24. Nab5 {[%emt 0:00:20]} Rc8 {[%emt 0:00:18]} 25. Bxe7 {[%emt 0:01:03]} Qxe7 {[%emt 0:00:01]} 26. Qa3 {[%emt 0:00:07]} Qd7 {[%emt 0:00:54]} 27. Qd6 {[%emt 0:00:12]} Bxh3 {[%emt 0:00:20]} 28. gxh3 {[%emt 0:00:09]} Qxh3 {[%emt 0:00:02]} 29. Qg3 {[%emt 0:00:12]} Qh5 {[%emt 0:00:28]} 30. Nd6 {[%emt 0:00:19]} Ne4 {[%emt 0:00:12]} 31. Nxe4 {[%emt 0:00:47]} dxe4 {[%emt 0:00:02]} 32. Kg2 {[%emt 0:00:20]} R4c5 {[%emt 0:00:22]} 33. Rh1 {[%emt 0:00:04]} Qd5 {[%emt 0:00:07]} 34. Rh4 {[%emt 0:00:26]} h6 {[%emt 0:00:13]} 35. Rah1 {[%emt 0:00:15]} Kf8 {[%emt 0:00:17]} 36. Qg4 {[%emt 0:00:36]} Re8 {[%emt 0:00:04]} 37. Rh5 {[%emt 0:00:29]} Qd6 {[%emt 0:00:18]} 38. Nf5 {[%emt 0:01:01]} Qf6 {[%emt 0:00:01]} 39. Qxg7+ {[%emt 0:00:17]} Qxg7+ {[%emt 0:00:03]} 40. Nxg7 {[%emt 0:00:01]} Rxh5 {[%emt 0:00:24]} 41. Nxh5 {[%emt 0:00:02]} Ra8 {[%emt 0:00:02]} 42. Ng3 {[%emt 0:00:10]} Rxa4 {[%emt 0:00:02]} 43. Rxh6 {[%emt 0:00:02]} Ke7 {[%emt 0:00:08]} 44. Rh4 {[%emt 0:00:02]} 1-0

[Event "46th GER-ch Rapid 2020"]
[Site "Plochingen"]
[Date "2020.09.19"]
[Round "5.4"]
[White "Richter, Nils"]
[Black "Frischmann, Rick"]
[Result "0-1"]
[ECO "A21"]
[WhiteElo "2307"]
[BlackElo "2347"]
[Annotator "NA"]
[PlyCount "24"]
[EventDate "2020.09.19"]
[EventType "swiss"]
[EventCountry "GER"]
[SourceTitle "playchess.com"]
[Source "ChessBase"]
[SourceQuality "1"]
[TimeControl "900+10"]

1. c4 {[%emt 0:00:00]} e5 {[%emt 0:00:00]} 2. Nc3 {[%emt 0:00:00]} Bb4 {[%emt 0:00:00]} 3. Nd5 {[%emt 0:00:00]} a5 {[%emt 0:00:00]} 4. a3 {[%emt 0:00:20]} Be7 {[%emt 0:00:00]} 5. e3 {[%emt 0:00:45]} Nf6 {[%emt 0:00:30]} 6. Nc3 {[%emt 0:00:38]} O-O {[%emt 0:03:23]} 7. Nf3 {[%emt 0:00:06]} Nc6 {[%emt 0:01:43]} 8. Be2 {[%emt 0:00:03]} d5 {[%emt 0:00:13]} 9. cxd5 {[%emt 0:00:03]} Nxd5 {[%emt 0:00:02]} 10. Qc2 {[%emt 0:00:25]} Be6 {[%emt 0:00:50]} 11. O-O {[%emt 0:00:04]} f5 {[%emt 0:01:21]} 12. d3 {[%emt 0:00:02]} Bf6 {[%emt 0:01:15]} 0-1

[Event "46th GER-ch Rapid 2020"]
[Site "Plochingen"]
[Date "2020.09.19"]
[Round "5.5"]
[White "Schmaltz, Roland"]
[Black "Richter, Christian"]
[Result "1/2-1/2"]
[ECO "C90"]
[WhiteElo "2449"]
[BlackElo "2348"]
[Annotator "ChessBase"]
[PlyCount "111"]
[EventDate "2020.09.19"]
[EventType "swiss"]
[EventCountry "GER"]
[SourceTitle "playchess.com"]
[Source "ChessBase"]
[SourceQuality "1"]
[TimeControl "900+10"]

1. e4 {[%emt 0:00:00]} e5 {[%emt 0:00:00]} 2. Nf3 {[%emt 0:00:00]} Nc6 {[%emt 0:00:00]} 3. Bb5 {[%emt 0:00:00]} a6 {[%emt 0:00:00]} 4. Ba4 {[%emt 0:00:00]} Nf6 {[%emt 0:00:03]} 5. d3 {[%emt 0:00:00]} b5 {[%emt 0:00:06]} 6. Bb3 {[%emt 0:00:00]} Be7 {[%emt 0:00:10]} 7. O-O {[%emt 0:00:06]} d6 {[%emt 0:00:04]} 8. c3 {[%emt 0:00:02]} O-O {[%emt 0:00:06]} 9. Re1 {[%emt 0:00:03]} h6 {[%emt 0:00:56]} 10. Nbd2 {[%emt 0:00:03]} Re8 {[%emt 0:00:04]} 11. Nf1 {[%emt 0:00:03]} Bf8 {[%emt 0:00:06]} 12. Ne3 {[%emt 0:00:22]} Na5 {[%emt 0:00:12]} 13. Bc2 {[%emt 0:00:04]} c5 {[%emt 0:01:14]} 14. h3 {[%emt 0:00:57]} Nh7 {[%emt 0:02:30]} 15. a3 {[%emt 0:03:14]} Be6 {[%emt 0:02:08]} 16. b4 {[%emt 0:00:12]} Nc6 {[%emt 0:00:37]} 17. Bd2 {[%emt 0:01:00]} Nf6 {[%emt 0:01:01]} 18. Rb1 {[%emt 0:00:19]} Qd7 {[%emt 0:01:43]} 19. c4 {[%emt 0:00:58]} cxb4 {[%emt 0:00:51]} 20. axb4 {[%emt 0:00:08]} Reb8 {[%emt 0:00:16]} 21. Nd5 {[%emt 0:00:19]} Qd8 {[%emt 0:00:28]} 22. Bc3 {[%emt 0:00:30]} Nh7 {[%emt 0:00:37]} 23. Qd2 {[%emt 0:02:16]} Bd7 {[%emt 0:00:57]} 24. Bb3 {[%emt 0:00:15]} Ng5 {[%emt 0:00:11]} 25. Nxg5 {[%emt 0:00:14]} Qxg5 {[%emt 0:00:10]} 26. Qxg5 {[%emt 0:00:14]} hxg5 {[%emt 0:00:01]} 27. Ra1 {[%emt 0:00:20]} Ra7 {[%emt 0:02:23]} 28. cxb5 {[%emt 0:01:11]} axb5 {[%emt 0:00:09]} 29. Rxa7 {[%emt 0:00:08]} Nxa7 {[%emt 0:00:02]} 30. Ra1 {[%emt 0:00:13]} Rb7 {[%emt 0:00:30]} 31. f3 {[%emt 0:00:13]} Kh7 {[%emt 0:00:42]} 32. Bd2 {[%emt 0:00:08]} Kg6 {[%emt 0:00:18]} 33. Be3 {[%emt 0:00:01]} Nc6 {[%emt 0:00:03]} 34. Ra8 {[%emt 0:00:05]} Rb8 {[%emt 0:00:34]} 35. Ra6 {[%emt 0:00:35]} Rb7 {[%emt 0:00:31]} 36. Kf2 {[%emt 0:00:34]} Be8 {[%emt 0:00:53]} 37. Ke1 {[%emt 0:00:20]} Bd7 {[%emt 0:00:07]} 38. Kd2 {[%emt 0:00:05]} Be8 {[%emt 0:00:04]} 39. Kc3 {[%emt 0:00:06]} Rb8 {[%emt 0:00:05]} 40. Rb6 {[%emt 0:01:07]} Rc8 {[%emt 0:00:11]} 41. Kd2 {[%emt 0:00:12]} f6 {[%emt 0:00:09]} 42. Rb7 {[%emt 0:00:09]} Nd4 {[%emt 0:00:15]} 43. Bxd4 {[%emt 0:00:26]} exd4 {[%emt 0:00:02]} 44. Nc7 {[%emt 0:00:21]} Bc6 {[%emt 0:00:03]} 45. Ra7 {[%emt 0:00:02]} d5 {[%emt 0:00:07]} 46. exd5 {[%emt 0:00:45]} Bxb4+ {[%emt 0:00:01]} 47. Kd1 {[%emt 0:00:00]} Bc5 {[%emt 0:00:12]} 48. dxc6 {[%emt 0:00:24]} Bxa7 {[%emt 0:00:01]} 49. Nxb5 {[%emt 0:00:01]} Bb6 {[%emt 0:00:17]} 50. Bd5 {[%emt 0:00:02]} Kh7 {[%emt 0:00:49]} 51. g4 {[%emt 0:00:05]} g6 {[%emt 0:00:04]} 52. Kc2 {[%emt 0:00:15]} Rd8 {[%emt 0:00:05]} 53. Be6 {[%emt 0:00:08]} Ra8 {[%emt 0:00:05]} 54. c7 {[%emt 0:00:39]} Bxc7 {[%emt 0:00:03]} 55. Nxc7 {[%emt 0:00:01]} Ra5 {[%emt 0:00:13]} 56. Bc4 {[%emt 0:00:07]} 1/2-1/2